[Event "85th Tata Steel Challengers 2023"]
[Site "Wijk aan Zee"]
[Date "2023.01.28"]
[Round "12.1"]
[White "Beerdsen, Thomas"]
[Black "Donchenko, Alexander"]
[Result "0-1"]
[ECO "B12"]
[WhiteElo "2515"]
[BlackElo "2627"]
[Annotator "TA"]
[PlyCount "44"]
[EventDate "2023.01.10"]
[EventType "tourn"]
[EventCountry "NED"]
[SourceTitle "playchess.com"]
[Source "ChessBase"]
[SourceQuality "1"]
[TimeControl "40/6000+30:30/3000+30:900+30"]

{[%evp 14,44,9,0,0,0,2,0,0,0,0,28,2,-123,-126,-104,-111,-111,-120,-229,-200,-226,-230,-227,-142,-149,-139,-134,-135,-182,-182,-175,-160]} 1. e4 {[%emt 0:00:05]} c6 {[%emt 0:00:14]} 2. d4 {[%emt 0:00:06]} d5 {[%emt 0:00:06]} 3. e5 {[%emt 0:00:07]} Bf5 {[%emt 0:00:42]} 4. h4 {[%emt 0:00:22]} h5 {[%emt 0:00:22]} 5. c4 {[%emt 0:00:23]} e6 {[%emt 0:00:33]} 6. Nc3 {[%emt 0:00:19]} dxc4 {[%emt 0:00:26]} 7. Bxc4 {[%emt 0:00:16]} Nd7 {[%emt 0:00:07]} 8. Nge2 {[%emt 0:00:45]} Be7 {[%emt 0:00:47] B12: Caro-Kann: Advance Variation.} 9. g3 {[%emt 0:00:51]} Nh6 {[%emt 0:00:38]} 10. Bf4 {[%emt 0:01:31]} Qb6 {[%emt 0:01:07] [#] The position is equal.} 11. O-O $146 {[%emt 0:01:24]} ({Predecessor:} 11. Qd2 Rd8 12. Rd1 Ng4 13. Qc1 Qb4 14. Bb3 Be4 15. O-O {1-0 Beerdsen,T (2494)-Elgersma,O (2312) Hilversum op 2022 (4)}) 11... Rd8 {[%emt 0:06:07]} 12. Qc1 {[%emt 0:00:17]} a6 {[%emt 0:01:12]} 13. Be3 {[%emt 0:14:01] [#]} (13. a4 $11 {keeps the balance.}) 13... c5 $1 $17 {[%emt 0:15:37]} 14. Rd1 {[%emt 0:27:26]} Ng4 {[%emt 0:09:19]} 15. Bb3 {[%emt 0:10:37]} O-O {[%emt 0:09:09] Black is more active.} 16. dxc5 {[%emt 0:12:50]} (16. f3 $17 {was necessary.} Nxe3 17. Qxe3) 16... Bxc5 $19 {[%emt 0:02:20][%cal Be7c5,Bc5e3,Be3c1,Bc1b2][%mdl 32] Black is clearly better.} 17. Na4 {[%emt 0:03:15]} Bxe3 {[%emt 0:01:25]} 18. Nxb6 {[%emt 0:00:12]} Bxc1 {[%emt 0:02:42] A strong pair of Bishops.} 19. Nxd7 {[%emt 0:00:47]} Bxb2 {[%emt 0:01:24][%mdl 64] [#] Trapped Piece, Double Attack} 20. Nxf8 {[%emt 0:01:20]} Rxf8 {[%emt 0:00:42]} 21. Nd4 {[%emt 0:03:58]} (21. f4 $17) 21... Bg6 {[%emt 0:05:02][%cal Og4e5][%mdl 1024] Black has strong compensation.} ({Not} 21... Nxe5 22. Nxf5 Bxa1 23. Ne7+ Kh7 24. Rxa1 $15) 22. Rac1 {[%emt 0:01:45]} Nxe5 {[%emt 0:07:12] Weighted Error Value: White=0.29 (precise) /Black=0.12 (very precise)} 0-1

[Event "85th Tata Steel Challengers 2023"]
[Site "Wijk aan Zee"]
[Date "2023.01.28"]
[Round "12.2"]
[White "Yilmaz, Mustafa"]
[Black "Supi, Luis Paulo"]
[Result "1/2-1/2"]
[ECO "D35"]
[WhiteElo "2609"]
[BlackElo "2608"]
[Annotator "TA"]
[PlyCount "61"]
[EventDate "2023.01.10"]
[EventType "tourn"]
[EventCountry "NED"]
[SourceTitle "playchess.com"]
[Source "ChessBase"]
[SourceQuality "1"]
[TimeControl "40/6000+30:30/3000+30:900+30"]

{[%evp 13,61,22,27,25,43,43,39,20,41,16,70,49,55,36,55,62,52,47,79,36,88,39,35,44,114,104,93,123,111,97,125,92,130,108,132,-66,0,0,0,0,0,0,0,0,0,0,0,-12,-12,0]} 1. d4 {[%emt 0:00:06] Krasenkow,Michal} d5 {[%emt 0:00:12]} 2. c4 {[%emt 0:00:06]} e6 {[%emt 0:00:02]} 3. Nc3 {[%emt 0:00:04]} Be7 {[%emt 0:00:04]} 4. cxd5 {[%emt 0:00:34]} exd5 {[%emt 0:00:02]} 5. Bf4 {[%emt 0:00:13]} Nf6 {[%emt 0:01:41]} 6. e3 {[%emt 0:01:17]} Bf5 $1 {[%emt 0:00:41][%mdl 4] now scores much better than the old 6...0-0.} 7. Qb3 {[%emt 0:00:41]} Nc6 {[%emt 0:00:17]} 8. g4 {[%emt 0:00:40] 8.a3 is not played anymore. D35: Queen's Gambit Declined: Exchange Variation.} Bc8 {[%emt 0:00:05]} 9. h3 {[%emt 0:10:37] [#]} O-O $146 {[%emt 0:03:17]} ({Predecessor:} 9... Bd6 10. Bxd6 cxd6 11. Nge2 h5 12. g5 Ne4 13. h4 O-O 14. Bg2 Bg4 15. Nf4 Rc8 16. Qxd5 Nxc3 17. bxc3 {0-1 Morozevich,A (2700)-Onischuk,A (2683) Reggio Emilia 53rd 2010 (6)}) 10. Nge2 {[%emt 0:04:04] White is slightly better.} Na5 {[%emt 0:15:48]} 11. Qc2 {[%emt 0:02:51]} Nc4 {[%emt 0:08:03]} (11... c6 $11) 12. Ng3 {[%emt 0:05:54]} Bd6 {[%emt 0:06:51]} 13. Bxd6 {[%emt 0:10:38]} (13. g5 {is interesting.} Bxf4 14. exf4 Re8+ 15. Be2) 13... Nxd6 {[%emt 0:14:54]} 14. Bd3 {[%emt 0:04:19]} Kh8 {[%emt 0:11:34]} 15. f3 {[%emt 0:08:25]} b6 {[%emt 0:03:37]} 16. O-O-O {[%emt 0:12:45]} (16. g5 $5 {[%cal Rg5f6]}) 16... c5 {[%emt 0:01:55] [#]} 17. g5 {[%emt 0:06:52]} (17. dxc5 $1 $16 bxc5 18. Be2) 17... Nfe8 $14 {[%emt 0:03:13]} 18. h4 $36 {[%emt 0:02:36][%mdl 2048] Strongly threatening dxc5. White is more active.} (18. Bxh7 $2 Qxg5 19. dxc5 bxc5 $19) (18. Nxd5 $2 Bb7 19. Be4 cxd4 $17) 18... Bb7 {[%emt 0:01:49]} (18... Be6 $14) 19. Kb1 {[%emt 0:03:26] White has more active pieces.} (19. dxc5 bxc5 20. Bxh7 Nc4 $11) (19. Bxh7 {is more complex.} cxd4 20. exd4 Nc4 21. Rdg1) 19... Rc8 {[%emt 0:06:25]} 20. Bxh7 {[%emt 0:11:11]} cxd4 {[%emt 0:08:19]} 21. exd4 {[%emt 0:00:24] Bd3 would be deadly.} (21. Rxd4 $6 Nb5 22. Ra4 (22. Nxb5 Rxc2 23. Bxc2 Nc7 $11) 22... Ned6 $11) 21... Rxc3 {[%emt 0:01:15]} 22. bxc3 {[%emt 0:05:53]} (22. Qxc3 Kxh7 23. Qa3 a5 $17) 22... Nc4 {[%emt 0:00:11]} 23. Qd3 {[%emt 0:00:59] Hoping for Ka1.} Qd6 {[%emt 0:02:28]} (23... g6 $2 24. h5 (24. Bxg6 Qd6 $16) 24... Ba6 25. Ka1 $18 (25. hxg6 $2 {perishes.} Na3+ {[%mdl 64] Discovered Attack} 26. Kb2 Bxd3 $19) (25. hxg6 $2 Na3+ {[%mdl 64] Discovered Attack} 26. Kb2 Bxd3 $19)) 24. Nf1 {[%emt 0:07:32]} (24. Rdg1 $16) 24... Nc7 {[%emt 0:07:22]} (24... g6 $2 25. h5 Ba6 26. Ka1 $18) (24... Qa3 $1 $15 25. Rh2 Ba6) 25. Bf5 $11 {[%emt 0:01:58] Ka1 is the strong threat. The position is equal.} ({Of course not} 25. Nd2 Ba6 26. Nxc4 Bxc4 $15) 25... Ba6 {[%emt 0:01:41] Threatens to win with ...Na3+.} 26. Ka1 {[%emt 0:00:32] And now Qb1 would win.} Nb2 {[%emt 0:00:30][%mdl 64] [#] Discovered Attack, Double Attack. A dynamic duo of knights.} 27. Qc2 {[%emt 0:01:05]} Nxd1 {[%emt 0:00:08]} 28. Qxd1 {[%emt 0:00:05]} Qa3 {[%emt 0:04:58]} 29. Qd2 {[%emt 0:01:42]} Nb5 {[%emt 0:00:44]} 30. Ne3 {[%emt 0:05:43]} Nxc3 {[%emt 0:01:21]} 31. Qb2 {[%emt 0:00:02] Weighted Error Value: White=0.21 (precise) /Black=0.13 (very precise)} 1/2-1/2

[Event "85th Tata Steel Challengers 2023"]
[Site "Wijk aan Zee"]
[Date "2023.01.28"]
[Round "12.3"]
[White "Tabatabaei, M. Amin"]
[Black "Sindarov, Javokhir"]
[Result "1/2-1/2"]
[ECO "E36"]
[WhiteElo "2686"]
[BlackElo "2654"]
[Annotator "TA"]
[PlyCount "91"]
[EventDate "2023.01.10"]
[EventType "tourn"]
[EventCountry "NED"]
[SourceTitle "playchess.com"]
[Source "ChessBase"]
[SourceQuality "1"]
[TimeControl "40/6000+30:30/3000+30:900+30"]

{[%evp 12,91,8,18,18,7,25,10,15,7,7,17,39,31,31,38,31,9,20,5,18,6,6,8,8,14,10,6,6,-4,0,0,7,7,8,8,12,14,20,19,17,0,0,0,0,0,0,0,0,0,0,0,0,0,8,8,8,8,8,8,8,0,0,0,0,0,0,0,0,0,0,0,0,0,0,0,0,0,0,0,0,0]} 1. d4 {[%emt 0:00:50]} Nf6 {[%emt 0:00:23]} 2. c4 {[%emt 0:00:07]} e6 {[%emt 0:01:00]} 3. Nc3 {[%emt 0:00:09]} Bb4 {[%emt 0:00:18]} 4. Qc2 {[%emt 0:00:26]} d5 {[%emt 0:01:51]} 5. a3 {[%emt 0:00:26]} Bxc3+ {[%emt 0:00:10]} 6. Qxc3 {[%emt 0:00:07]} O-O {[%emt 0:00:04]} 7. Bg5 {[%emt 0:00:32]} dxc4 {[%emt 0:03:51] E36: Nimzo-Indian: Classical: 4...d5 5 a3.} 8. Qxc4 {[%emt 0:00:14]} b6 {[%emt 0:02:37]} 9. Rd1 {[%emt 0:01:17]} Ba6 {[%emt 0:09:07]} 10. Qa4 {[%emt 0:00:22]} h6 {[%emt 0:20:16] 10...h6 scores better than 10...Qd7.} 11. Bh4 {[%emt 0:00:19]} Qe8 {[%emt 0:00:53]} 12. Qxe8 {[%emt 0:24:51]} Rxe8 {[%emt 0:00:15]} 13. Bxf6 {[%emt 0:00:17]} gxf6 {[%emt 0:00:04]} 14. Nf3 {[%emt 0:02:10]} Nd7 {[%emt 0:01:57] The position is equal.} 15. e3 {[%emt 0:00:19]} Bb7 {[%emt 0:00:31] [#]} 16. Bc4 $146 {[%emt 0:01:41]} ({Predecessor:} 16. Bb5 Red8 17. O-O Rac8 18. h3 a6 19. Be2 c5 20. dxc5 Nxc5 21. Rxd8+ Rxd8 22. Rd1 Rxd1+ 23. Bxd1 {½-½ Jimenez Martinez,J (2271)-Almagro Llamas,P (2413) ESP-chT CECLUB Div1 2021 (5.3)}) 16... Red8 {[%emt 0:03:45]} 17. Ke2 {[%emt 0:20:08]} c5 {[%emt 0:05:33]} 18. dxc5 {[%emt 0:02:57]} Nxc5 {[%emt 0:00:14]} 19. Rxd8+ {[%emt 0:01:22]} Rxd8 {[%emt 0:00:08]} 20. Nd2 {[%emt 0:23:52]} Kf8 {[%emt 0:07:23]} (20... Bxg2 $2 21. Rg1 $18) 21. f3 {[%emt 0:00:05]} f5 {[%emt 0:00:06]} 22. Rc1 {[%emt 0:03:42]} Ke7 {[%emt 0:00:07]} 23. b4 {[%emt 0:01:53]} Nd7 {[%emt 0:00:27]} 24. Bb5 {[%emt 0:01:22]} Rc8 {[%emt 0:00:05] Prevents Rc7} 25. Rxc8 {[%emt 0:01:23]} Bxc8 {[%emt 0:00:04]} 26. Bxd7 {[%emt 0:01:04]} Bxd7 $11 {[%emt 0:00:21][%mdl 4096] Endgame KB-KN} 27. Nb1 {[%emt 0:01:58]} Kd6 {[%emt 0:03:35]} 28. Nc3 {[%emt 0:00:12]} f6 {[%emt 0:11:02]} 29. Kd3 {[%emt 0:04:47]} e5 {[%emt 0:00:53]} 30. Ke2 {[%emt 0:02:29]} Bc6 {[%emt 0:00:27]} 31. Kf2 {[%emt 0:00:44]} f4 {[%emt 0:05:57]} 32. Ke2 {[%emt 0:09:24]} f5 {[%emt 0:05:50]} 33. exf4 {[%emt 0:00:53]} exf4 {[%emt 0:00:05]} 34. Kd3 {[%emt 0:00:03] Strongly threatening Kd4.} Ke5 {[%emt 0:00:07]} 35. Kc4 {[%emt 0:00:13]} Bd7 {[%emt 0:07:48]} 36. Nd1 {[%emt 0:02:49]} Be6+ {[%emt 0:03:17]} 37. Kc3 {[%emt 0:00:02]} Bd7 $1 {[%emt 0:00:10]} 38. Kc4 {[%emt 0:00:03]} Be6+ {[%emt 0:00:28]} 39. Kc3 {[%emt 0:00:04]} Bd7 $1 {[%emt 0:00:04]} 40. Nb2 {[%emt 0:03:33]} Bb5 {[%emt 0:00:12]} 41. Nd3+ {[%emt 0:07:16]} Bxd3 {[%emt 0:00:16]} 42. Kxd3 {[%emt 0:00:39] [#] Threatens to win with Kc4.} b5 {[%emt 0:00:03]} 43. Kc3 {[%emt 0:00:05]} Kd5 {[%emt 0:00:06]} 44. Kd3 {[%emt 0:00:04]} Ke5 {[%emt 0:00:05]} 45. Kc3 {[%emt 0:00:02]} Kd5 {[%emt 0:00:05]} 46. Kd3 {[%emt 0:00:05] Weighted Error Value: White=0.03 (flawless) /Black=0.03 (flawless)} 1/2-1/2

[Event "85th Tata Steel Challengers 2023"]
[Site "Wijk aan Zee"]
[Date "2023.01.28"]
[Round "12.4"]
[White "Ivic, Velimir"]
[Black "Roebers, Eline"]
[Result "1-0"]
[ECO "E11"]
[WhiteElo "2585"]
[BlackElo "2361"]
[Annotator "TA"]
[PlyCount "69"]
[EventDate "2023.01.10"]
[EventType "tourn"]
[EventCountry "NED"]
[SourceTitle "playchess.com"]
[Source "ChessBase"]
[SourceQuality "1"]
[TimeControl "40/6000+30:30/3000+30:900+30"]

{[%evp 12,69,20,20,23,15,13,5,14,15,18,13,7,16,27,25,23,16,16,12,10,21,20,27,22,22,46,41,34,36,113,137,123,75,259,99,206,204,234,143,240,235,231,233,219,215,215,0,239,234,233,216,230,218,268,202,557,557,904,908]} 1. d4 {[%emt 0:00:08]} Nf6 {[%emt 0:00:03]} 2. c4 {[%emt 0:00:12]} e6 {[%emt 0:00:03]} 3. Nf3 {[%emt 0:00:11]} Bb4+ {[%emt 0:00:25]} 4. Bd2 {[%emt 0:00:18]} Bxd2+ {[%emt 0:00:30]} 5. Qxd2 {[%emt 0:00:12]} O-O {[%emt 0:01:23]} 6. g3 {[%emt 0:00:32]} d5 {[%emt 0:05:33]} 7. Bg2 {[%emt 0:00:48]} c6 {[%emt 0:00:21] E11: Bogo-Indian.} 8. Qc2 {[%emt 0:01:20]} b6 {[%emt 0:02:50] is more profitable than 8...Nbd7 at the moment.} 9. O-O {[%emt 0:00:40]} Bb7 {[%emt 0:01:02] The position is equal.} 10. Nbd2 {[%emt 0:00:29]} Nbd7 {[%emt 0:01:55]} 11. b4 {[%emt 0:01:20]} a5 {[%emt 0:25:46]} 12. a3 {[%emt 0:00:14][%cal Ba2a3,Ba3b4][%mdl 32]} axb4 {[%emt 0:02:20]} 13. axb4 {[%emt 0:00:18] [#]} c5 $146 {[%emt 0:00:31]} ({Predecessor:} 13... Qe7 14. c5 Ba6 15. Rfe1 Bb5 16. e3 Rfc8 17. Ra2 Qd8 18. Rea1 h6 19. h3 Ne8 {½-½ Gleizerov,E (2567)-Tratar,M (2503) Trieste op 15th 2013 (7)}) 14. cxd5 {[%emt 0:16:47]} Bxd5 {[%emt 0:02:50]} 15. e4 {[%emt 0:12:37][%cal Be2e4,Be4e5][%mdl 32]} Bb7 {[%emt 0:01:56]} 16. e5 {[%emt 0:03:43] [#] Threatens to win with Rxa8.} Nd5 {[%emt 0:03:09]} 17. bxc5 {[%emt 0:00:28]} bxc5 {[%emt 0:00:42]} 18. dxc5 {[%emt 0:00:31][%cal Bd4c5,Bc5c6][%mdl 32]} Qc7 {[%emt 0:03:20][%csl LRc5,LRe5]} 19. Rxa8 {[%emt 0:10:15]} (19. Rac1 {looks sharper.} Nb4 20. Qb1 Rfb8 21. Ng5) 19... Rxa8 {[%emt 0:03:04]} 20. Rc1 {[%emt 0:04:21] c6 would be deadly.} Nxe5 {[%emt 0:19:30]} (20... Bc6 $1 $14) 21. Nxe5 $16 {[%emt 0:01:20]} Qxe5 {[%emt 0:00:06]} 22. c6 $40 {[%emt 0:02:19][%mdl 128] White wants a kill.} Ba6 {[%emt 0:00:53]} (22... Bc8 $16) 23. Nf3 $2 {[%emt 0:07:09]} (23. c7 $18 {is the precise move to win.} Rc8 24. Qa4 (24. Bxd5 Qxd5 25. Qc3 h6 $14)) 23... Qc7 {[%emt 0:01:57]} (23... Qf6 $16 {was necessary.}) 24. Nd4 $18 {[%emt 0:04:44]} Rd8 {[%emt 0:04:23]} 25. Qc5 {[%emt 0:01:37] Prevents Nb4. aiming for Ra1.} Nb6 {[%emt 0:05:05]} (25... h6 $16 26. f4 Qd6) 26. h4 {[%emt 0:02:16][%cal Bh2h4,Bh4h5][%mdl 32]} h6 {[%emt 0:01:30]} 27. Ra1 {[%emt 0:01:31] Inhibits Na4.} Bd3 {[%emt 0:00:49]} 28. Ra3 {[%emt 0:05:07]} Bc4 {[%emt 0:00:15]} 29. Ra1 {[%emt 0:04:09][%cal Ba3a1,Ba1c1,Bc1d1,Bd1b1][%mdl 32] And now Rb1 would win.} Bd3 {[%emt 0:01:33] Prevents Rb1.} 30. h5 {[%emt 0:04:21]} Rb8 {[%emt 0:05:49]} 31. Bf3 {[%emt 0:15:58]} Rd8 {[%emt 0:00:43]} 32. Kg2 {[%emt 0:00:44] Hoping for Rd1.} Rb8 {[%emt 0:00:50]} 33. Rc1 {[%emt 0:02:26]} Rd8 $2 {[%emt 0:01:21] [#]} (33... Ba6 34. Ra1 Ra8) 34. Rd1 $1 {[%emt 0:01:30]} Bc4 {[%emt 0:01:16]} 35. Rb1 {[%emt 0:01:11] Weighted Error Value: White=0.26 (precise) /Black=0.45} 1-0

[Event "85th Tata Steel Challengers 2023"]
[Site "Wijk aan Zee"]
[Date "2023.01.28"]
[Round "12.5"]
[White "L'Ami, Erwin"]
[Black "Adhiban, B.."]
[Result "0-1"]
[ECO "C13"]
[WhiteElo "2627"]
[BlackElo "2610"]
[Annotator "TA"]
[PlyCount "168"]
[EventDate "2023.01.10"]
[EventType "tourn"]
[EventCountry "NED"]
[SourceTitle "playchess.com"]
[Source "ChessBase"]
[SourceQuality "1"]
[TimeControl "40/6000+30:30/3000+30:900+30"]

{[%evp 14,168,8,14,27,10,15,20,41,52,45,32,35,43,38,33,45,25,43,25,25,25,25,25,25,25,32,25,41,19,41,37,52,37,41,41,41,37,64,37,41,37,42,37,37,37,37,37,37,37,37,37,46,37,46,32,39,33,43,36,42,29,29,29,29,29,29,29,37,29,29,0,44,37,37,29,29,29,29,29,29,-95,-95,-93,-93,-93,-90,-93,-93,-93,-93,-93,-93,-148,-142,-185,-181,-156,-148,-148,-136,-148,-125,-134,-110,-212,-193,-209,-165,-205,-199,-208,-164,-219,-163,-169,-160,-210,-202,-250,0,-207,-151,-270,-252,-469,-367,-354,-375,-474,-468,-441,-412,-449,-506,-373,-419,-5197,-5190,-2040,-1468,-717,-445,-539,-537,-557,-555,-535,-529,-12831,-12833,-9490,-9509,-2129,-1934,-5704,-5073]} 1. d4 {[%emt 0:00:05]} e6 {[%emt 0:00:43]} 2. e4 {[%emt 0:02:25]} d5 {[%emt 0:00:07]} 3. Nc3 {[%emt 0:00:24]} Nf6 {[%emt 0:00:05]} 4. Bg5 {[%emt 0:01:29]} dxe4 {[%emt 0:00:06]} 5. Nxe4 {[%emt 0:00:22]} Be7 {[%emt 0:00:04]} 6. Nxf6+ {[%emt 0:06:43]} Bxf6 {[%emt 0:00:08]} 7. Bxf6 {[%emt 0:02:33]} Qxf6 {[%emt 0:00:02]} 8. Nf3 {[%emt 0:00:17]} Bd7 {[%emt 0:00:10] C13: French: Classical System: 4 Bg5 Be7, Alekhine-Chatard Attack.} 9. c3 {[%emt 0:05:25]} O-O {[%emt 0:08:12]} 10. Qc2 {[%emt 0:22:17] [#]} Qg6 $146 {[%emt 0:40:47] The position is equal.} ({Predecessor:} 10... Bc6 11. Ne5 h6 12. O-O-O Rd8 13. Kb1 Bd5 14. c4 Bc6 15. f4 a6 16. Bd3 Nd7 17. Rhf1 Nxe5 18. fxe5 {½-½ Korinek,J (1965)-Van Bommel,T (2126) LSS No Engine Cup 117 Preliminary 0 2014}) 11. Qxg6 {[%emt 0:05:17]} hxg6 {[%emt 0:01:04]} 12. h4 {[%emt 0:02:46]} Rd8 {[%emt 0:02:15]} 13. Ne5 {[%emt 0:06:32]} Nc6 {[%emt 0:01:10][%cal Bb8c6,Bc6e7,Be7d5][%mdl 32]} 14. Nxd7 {[%emt 0:02:29]} Rxd7 {[%emt 0:00:32]} 15. O-O-O {[%emt 0:01:10]} Rad8 {[%emt 0:02:45]} 16. Be2 {[%emt 0:01:37]} Ne7 {[%emt 0:00:17]} 17. Bf3 {[%emt 0:03:29]} c6 {[%emt 0:02:39]} 18. Rhe1 {[%emt 0:04:33]} Rd6 {[%emt 0:00:53]} 19. g3 {[%emt 0:01:33]} Kf8 {[%emt 0:00:54]} 20. Re5 {[%emt 0:01:23]} Nd5 {[%emt 0:00:29]} 21. Kc2 {[%emt 0:01:33]} f6 {[%emt 0:07:44]} 22. Re2 {[%emt 0:03:38]} Kf7 {[%emt 0:00:13]} 23. a3 {[%emt 0:02:51]} Nc7 {[%emt 0:01:29]} 24. Red2 {[%emt 0:00:45]} Nd5 {[%emt 0:02:48]} 25. Be2 {[%emt 0:03:15]} Ne7 {[%emt 0:02:04]} 26. Bc4 {[%emt 0:01:58]} Nd5 {[%emt 0:01:55]} 27. Bb3 {[%emt 0:00:23]} Nc7 {[%emt 0:00:22]} 28. Kc1 {[%emt 0:01:19]} Rh8 {[%emt 0:02:54]} 29. Re1 {[%emt 0:01:36]} Rhd8 {[%emt 0:01:54][%cal Oc6c5]} 30. Rde2 {[%emt 0:00:18]} Rh8 {[%emt 0:00:24]} 31. Re4 {[%emt 0:01:52]} Re8 {[%emt 0:00:22]} 32. Kc2 {[%emt 0:01:03]} Rh8 {[%emt 0:00:28]} 33. Bc4 {[%emt 0:01:13]} Nd5 {[%emt 0:00:34]} 34. Ba2 {[%emt 0:03:49]} Nc7 {[%emt 0:00:23]} 35. f4 {[%emt 0:02:18]} a5 {[%emt 0:04:55]} 36. a4 {[%emt 0:04:41]} Rh5 {[%emt 0:03:28]} 37. Bb3 {[%emt 0:02:06]} Rh8 {[%emt 0:00:55]} 38. R4e2 {[%emt 0:01:36]} Nd5 {[%emt 0:05:00]} 39. Kc1 {[%emt 0:07:00]} Nc7 {[%emt 0:00:31]} 40. Kb1 {[%emt 0:00:09]} Ke7 {[%emt 0:04:45]} 41. Rh2 {[%emt 0:04:52]} Nd5 {[%emt 0:03:10]} 42. Rhe2 {[%emt 0:03:47]} Nc7 {[%emt 0:09:03]} 43. Bc2 {[%emt 0:06:04]} Kf7 {[%emt 0:00:38]} 44. Re4 {[%emt 0:01:33]} Nd5 {[%emt 0:04:18]} 45. Bb3 {[%emt 0:00:32]} Nc7 {[%emt 0:00:38]} 46. Kc1 {[%emt 0:00:39]} Ke7 {[%emt 0:04:06]} 47. c4 {[%emt 0:13:31]} (47. Bc4 $11 {remains equal.}) 47... Rhd8 $17 {[%emt 0:06:44]} 48. d5 {[%emt 0:00:28]} cxd5 {[%emt 0:01:47]} 49. cxd5 {[%emt 0:00:13]} Rb6 $1 {[%emt 0:00:17]} ({Of course not} 49... Nxd5 $6 50. Bxd5 Rxd5 51. Rxe6+ Kf8 52. Re7 $11) 50. Bc4 {[%emt 0:05:54][%cal Rd5e6]} Nxd5 {[%emt 0:00:24]} 51. b3 {[%emt 0:00:24]} Rdd6 {[%emt 0:05:15]} 52. Kb2 {[%emt 0:02:22] Prevents Nc3} Nb4 {[%emt 0:02:18] Hoping for ...Nd3+.} 53. R1e2 {[%emt 0:05:28]} (53. R4e3 $142) 53... Nd3+ {[%emt 0:02:23]} 54. Kc2 {[%emt 0:00:54]} Nc5 {[%emt 0:09:05]} 55. R4e3 {[%emt 0:00:10]} Rd4 {[%emt 0:05:07]} 56. Kc3 {[%emt 0:02:33]} Rd1 {[%emt 0:09:00] Black is more active.} 57. Re1 {[%emt 0:02:02]} Rxe1 {[%emt 0:03:10]} 58. Rxe1 {[%emt 0:00:07][%mdl 4096] Endgame KRB-KRN} f5 {[%emt 0:00:04]} 59. Re3 {[%emt 0:04:24]} (59. Re5 $17 Rc6 60. Kb2) 59... Ne4+ $19 {[%emt 0:01:48]} 60. Kc2 {[%emt 0:00:37]} Rc6 {[%emt 0:00:32]} 61. Kd1 {[%emt 0:03:25]} b6 {[%emt 0:00:31]} 62. Ke2 {[%emt 0:00:50]} Rd6 {[%emt 0:01:03]} 63. Ke1 {[%emt 0:01:08]} (63. Bd3 $142 Nc5 64. Bc2) 63... Rd4 {[%emt 0:00:34]} 64. Bd3 {[%emt 0:01:38]} Kd6 {[%emt 0:02:01]} 65. Bc4 {[%emt 0:01:48]} (65. Rf3 $17 {keeps fighting.}) 65... Nc5 {[%emt 0:01:13]} 66. Be2 {[%emt 0:00:29]} Ne4 {[%emt 0:00:00]} 67. Bc4 {[%emt 0:00:00]} e5 {[%emt 0:00:00]} 68. fxe5+ {[%emt 0:00:00]} (68. Re2 $17 {was worth a try.}) 68... Kxe5 {[%emt 0:00:00]} 69. Kf1 $2 {[%emt 0:00:00]} (69. Be2 {was necessary.}) 69... Rd1+ {[%emt 0:00:00]} 70. Kg2 {[%emt 0:00:00]} Rd2+ {[%emt 0:00:00]} 71. Kg1 {[%emt 0:10:35] [#]} g5 $1 {[%emt 0:12:59][%mdl 512]} 72. hxg5 {[%emt 0:01:22]} f4 {[%emt 0:00:04]} 73. gxf4+ {[%emt 0:00:46]} Kxf4 {[%emt 0:00:02]} 74. Re1 {[%emt 0:03:21]} Nxg5 {[%emt 0:01:20]} 75. Re7 {[%emt 0:00:36]} (75. Kf1 $142 Ne4 76. Bb5) 75... Nf3+ {[%emt 0:00:17] Black is clearly winning.} 76. Kf1 {[%emt 0:00:05]} g5 {[%emt 0:00:06]} 77. Be2 {[%emt 0:01:52]} Nd4 {[%emt 0:00:12][%cal Od2e2]} 78. Bc4 {[%emt 0:00:07]} g4 {[%emt 0:00:40]} 79. Rf7+ {[%emt 0:00:04]} Kg3 {[%emt 0:00:24][%cal Rd2d1] [#]} 80. Ke1 {[%emt 0:00:05] Wards off Rd1+} Rb2 {[%emt 0:00:25] Strongly threatening ...Nf3+.} 81. Rg7 {[%emt 0:01:46]} Nc2+ {[%emt 0:01:46]} ({Weaker is} 81... Nxb3 82. Be2 $17) 82. Kd2 {[%emt 0:00:35]} Na3+ {[%emt 0:00:05]} 83. Kc3 {[%emt 0:00:04]} Nxc4 {[%emt 0:00:04]} 84. Kxc4 {[%emt 0:00:27]} Rf2 {[%emt 0:00:15] Weighted Error Value: White=0.14 (very precise) /Black=0.06 (flawless)} 0-1